fUSD/lending_fUSD_20260701
["ID","MTS","AMOUNT","RATE_DAILY","PERIOD"]
[426812562,1782864632000,-419.0,0.00013514,2]
[426812563,1782864632000,-724.0,0.00013552,2]
[426812564,1782864632000,-151.0,0.00013552,2]
[426812565,1782864632000,-166.47,0.0001358,2]
[426812575,1782864632000,-297.33021098,0.00013812,2]
[426812566,1782864632000,-231.0925301,0.00013592,2]
[426812568,1782864632000,-704.12529327,0.00013785,2]
[426812569,1782864632000,-151.0,0.00013808,2]
[426812567,1782864632000,-1082.9574699,0.00013592,2]
[426812570,1782864632000,-150.0,0.00013808,2]
[426812571,1782864632000,-151.0,0.00013808,2]
[426812572,1782864632000,-151.0,0.00013808,2]
[426812573,1782864632000,-693.48999679,0.00013808,2]
[426812574,1782864632000,-156.29025463,0.00013812,2]
[426812561,1782864632000,-526.24,0.000133,2]
[426812578,1782864632000,-3267.42,0.00013812,2]
[426812593,1782864632000,-187.87321047,0.00014315,2]
[426812576,1782864632000,-593.73613057,0.00013812,2]
[426812587,1782864632000,-150.0,0.00014315,2]
[426812592,1782864632000,-903.0,0.00014315,2]
[426812590,1782864632000,-152.0,0.00014315,2]
[426812591,1782864632000,-152.0,0.00014315,2]
[426812589,1782864632000,-151.0,0.00014315,2]
[426812588,1782864632000,-151.0,0.00014315,2]
[426812586,1782864632000,-151.0,0.00014315,2]
[426812579,1782864632000,-4442.03,0.00013812,2]
[426812585,1782864632000,-150.0,0.00014315,2]
[426812582,1782864632000,-2500.0,0.0001424,2]
[426812583,1782864632000,-2366.46038142,0.0001424,2]
[426812581,1782864632000,-417.0,0.00014139,2]
[426812577,1782864632000,-150.99,0.00013812,2]
[426812580,1782864632000,-150.0,0.00013812,2]
[426812584,1782864632000,-151.0,0.00014315,2]
[426812596,1782864633000,-250.0,0.00014315,2]
[426812602,1782864633000,-150.199,0.00014315,2]
[426812601,1782864633000,-250.0,0.00014315,2]
[426812603,1782864633000,-150.0,0.00014315,2]
[426812597,1782864633000,-150.0,0.00014315,2]
[426812599,1782864633000,-250.0,0.00014315,2]
[426812604,1782864633000,-1809.05918932,0.00014315,2]
[426812595,1782864633000,-150.0,0.00014315,2]
[426812594,1782864633000,-276.59911493,0.00014315,2]
[426812598,1782864633000,-150.0,0.00014315,2]
[426812606,1782864633000,-1362.0,0.00014315,2]
[426812600,1782864633000,-168.588,0.00014315,2]
[426812607,1782864633000,-283.0,0.00014315,2]
[426812612,1782864633000,-304.0,0.00014315,2]
[426812608,1782864633000,-1278.0,0.00014315,2]
[426812605,1782864633000,-1755.94081068,0.00014315,2]
[426812610,1782864633000,-5185.10873932,0.00014315,2]
[426812615,1782864633000,-598.89126068,0.00014315,2]
[426812625,1782864633000,-11303.51187616,0.0001434,2]
[426812617,1782864633000,-1217.0,0.00014315,2]
[426812620,1782864633000,-332.67618187,0.00014339,2]
[426812623,1782864633000,-300.0,0.00014339,2]
[426812622,1782864633000,-300.0,0.00014339,2]
[426812609,1782864633000,-1231.0,0.00014315,2]
[426812677,1782864637000,-3669.929,0.00014315,2]
[426812679,1782864637000,-5119.05859325,0.0001434,2]
[426812678,1782864637000,-1304.66048364,0.0001434,2]
[426812681,1782864640000,190.12,0.00030136,30]
[426812680,1782864640000,-729.95540911,0.0001434,2]
[426812704,1782864643000,-1361.39009554,0.0001434,2]
[426812702,1782864643000,-10624.01861961,0.0001434,2]
[426812701,1782864643000,-2444.02451855,0.0001434,2]
[426812700,1782864643000,-868.28021811,0.0001424,2]
[426812703,1782864643000,-790.70620023,0.0001434,2]
[426812699,1782864643000,-334.0407658,0.0001424,2]
[426812698,1782864643000,-829.38851609,0.0001424,2]
[426812705,1782864645000,162.0,0.00028538,120]
[426812707,1782864645000,-114.31682221,0.0001434,2]
[426812708,1782864645000,-503.95925399,0.0001434,2]
[426812710,1782864646000,-411.01854175,0.0001434,2]
[426812709,1782864646000,-707.40469,0.0001434,2]
[426812712,1782864718000,313.86474292,0.0003,30]
[426812714,1782864730000,212.58,0.0002863,30]
[426812716,1782864731000,212.58,0.00029132,30]
[426812715,1782864731000,160.77,0.0002863,30]
[426812717,1782864732000,212.58,0.00029634,30]
[426812718,1782864733000,212.6,0.00030136,30]
[426812719,1782864758000,207.52,0.0002863,30]
[426812720,1782864775000,164.71,0.0002863,30]
[426812721,1782864820000,164.71,0.0002863,30]
[426812722,1782864821000,164.71,0.00029383,30]
[426812723,1782864865000,164.06,0.0002863,30]
[426812724,1782864891000,163.53,0.0002863,30]
[426812725,1782864911000,164.01,0.0002863,30]
[426812726,1782864956000,164.19,0.0002863,30]
[426812727,1782865000000,164.0,0.0002863,30]
[426812728,1782865008000,205.58,0.0001279,2]
[426812730,1782865059000,164.0,0.0002863,30]
[426812732,1782865090000,164.0,0.0002863,30]
[426812733,1782865155000,164.1,0.0002863,30]
[426812734,1782865226000,164.05,0.0002863,30]
[426812735,1782865304000,164.0,0.0002863,30]
[426812737,1782865378000,164.06,0.0002863,30]
[426812738,1782865446000,160.0,0.00028527,30]
[426812739,1782865447000,257.579867,7.945e-05,2]
[426812740,1782865466000,156.0,0.00028527,30]
[426812741,1782865634000,1000.0,0.00012887,2]
[426812742,1782865658000,228.0,0.00028527,30]
[426812743,1782865659000,228.0,0.00029527,30]
[426812744,1782865663000,2388.51,0.00012926,2]
[426812746,1782865701000,174.48,0.00030136,30]
[426812747,1782865740000,2000.0,0.00030136,30]
[426812748,1782865741000,2000.0,0.00028537,120]
[426812749,1782865769000,166.66,0.00012658,2]
[426812750,1782865773000,174.48,0.00030136,30]
[426812760,1782865831000,-151.0,0.00013444,2]
[426812764,1782865831000,-151.0,0.00013445,2]
[426812763,1782865831000,-150.0,0.00013445,2]
[426812758,1782865831000,-150.0,0.00013444,2]
[426812766,1782865831000,-151.0,0.00013445,2]
[426812757,1782865831000,-150.0,0.00013427,2]
[426812765,1782865831000,-152.0,0.00013445,2]
[426812761,1782865831000,-151.0,0.00013444,2]
[426812762,1782865831000,-152.0,0.00013445,2]
[426812755,1782865831000,-153.82325026,0.00013327,2]
[426812754,1782865831000,-150.0,0.00013295,2]
[426812752,1782865831000,-207.45,0.00013178,2]
[426812753,1782865831000,-163.35,0.00013178,2]
[426812751,1782865831000,-1051.24,0.00013164,2]
[426812756,1782865831000,-2440.57,0.00013382,2]
[426812759,1782865831000,-152.0,0.00013444,2]
[426812772,1782865831000,-151.0,0.00013445,2]
[426812778,1782865831000,-150.0,0.00013445,2]
[426812767,1782865831000,-151.0,0.00013445,2]
[426812780,1782865831000,-151.0,0.00013445,2]
[426812781,1782865831000,-153.0,0.00013445,2]
[426812782,1782865831000,-150.0,0.00013445,2]
[426812777,1782865831000,-152.0,0.00013445,2]
[426812775,1782865831000,-110.00548032,0.00013445,2]
[426812773,1782865831000,-153.0,0.00013445,2]
[426812779,1782865831000,-150.0,0.00013445,2]
[426812776,1782865831000,-150.0,0.00013445,2]
[426812774,1782865831000,-40.99451968,0.00013445,2]
[426812769,1782865831000,-151.0,0.00013445,2]
[426812770,1782865831000,-150.0,0.00013445,2]
[426812771,1782865831000,-151.0,0.00013445,2]
[426812768,1782865831000,-151.0,0.00013445,2]
[426812783,1782865831000,-151.0,0.00013445,2]
[426812787,1782865832000,-150.0,0.00013445,2]
[426812790,1782865832000,-150.0,0.00013488,2]
[426812791,1782865832000,-150.00000001,0.00013488,2]
[426812785,1782865832000,-151.0,0.00013445,2]
[426812786,1782865832000,-151.0,0.00013445,2]
[426812784,1782865832000,-150.0,0.00013445,2]
[426812789,1782865832000,-150.0,0.00013488,2]
[426812788,1782865832000,-384.1,0.00013451,2]
[426812799,1782865832000,-200.0,0.00013558,2]
[426812796,1782865832000,-150.0,0.00013488,2]
[426812793,1782865832000,-239.09615722,0.00013488,2]
[426812797,1782865832000,-150.0,0.00013488,2]
[426812795,1782865832000,-64.98682133,0.00013488,2]
[426812798,1782865832000,-150.0,0.00013488,2]
[426812794,1782865832000,-103.88452389,0.00013488,2]
[426812800,1782865832000,-132.79623361,0.00013602,2]
[426812792,1782865832000,-150.00000001,0.00013488,2]
[426812805,1782865837000,-166.47,0.00013849,2]
[426812804,1782865837000,-297.36,0.00013645,2]
[426812806,1782865837000,-49.42268247,0.00013849,2]
[426812807,1782865837000,-450.57731753,0.00013849,2]
[426812803,1782865837000,-21.02701664,0.00013602,2]
[426812811,1782865838000,-210.54933882,0.00013976,2]
[426812809,1782865838000,-415.6152914,0.00013975,2]
[426812813,1782865838000,-3014.27,0.00013976,2]
[426812808,1782865838000,-153.82325025,0.00013876,2]
[426812812,1782865838000,-1846.9,0.00013976,2]
[426812814,1782865838000,-576.06694506,0.00013976,2]
[426812815,1782865838000,-10093.64807689,0.00013976,2]
[426812816,1782865838000,-2619.26681935,0.00013976,2]
[426812810,1782865838000,-208.13114769,0.00013975,2]
[426812845,1782865841000,-1051.24,0.0001481,2]
[426812839,1782865841000,-200.0,0.00014594,2]
[426812843,1782865841000,-2129.81434326,0.0001471,2]
[426812841,1782865841000,-1593.14305315,0.00014601,2]
[426812840,1782865841000,-1000.0,0.000146,5]
[426812838,1782865841000,-255.0,0.0001456,2]
[426812842,1782865841000,-1500.0,0.000147,5]
[426812848,1782865841000,-5538.4989591,0.00014831,2]
[426812847,1782865841000,-207.45,0.00014825,2]
[426812851,1782865841000,-300.0,0.00014844,2]
[426812852,1782865841000,-1694.5534017,0.00014845,2]
[426812849,1782865841000,-19690.369749,0.00014831,2]
[426812854,1782865841000,-11572.75836784,0.0001485,2]
[426812868,1782865841000,-500.0,0.00014957,2]
[426812853,1782865841000,-242.860512,0.00014845,2]
[426812855,1782865841000,-500.0,0.00014863,2]
[426812856,1782865841000,-300.0,0.00014899,2]
[426812858,1782865841000,-243.65333482,0.000149,2]
[426812850,1782865841000,-300.0,0.00014844,2]
[426812836,1782865841000,-339.79790032,0.00014481,2]
[426812846,1782865841000,-372.23139701,0.00014812,2]
[426812844,1782865841000,-2100.0,0.000148,5]
[426812819,1782865841000,-1918.562873,0.00013976,2]
[426812820,1782865841000,-245.0,0.00014,2]
[426812818,1782865841000,-69370.19377488,0.00013976,2]
[426812822,1782865841000,-3565.0,0.00014249,2]
[426812824,1782865841000,-3669.929,0.00014249,2]
[426812831,1782865841000,-152.0,0.0001434,2]
[426812823,1782865841000,-1217.0,0.00014249,2]
[426812832,1782865841000,-151.0,0.0001434,2]
[426812835,1782865841000,-1341.74990164,0.00014427,2]
[426812821,1782865841000,-1231.0,0.00014249,2]
[426812826,1782865841000,-88246.1148954,0.00014276,2]
[426812825,1782865841000,-24821.8302512,0.00014276,2]
[426812828,1782865841000,-300.0,0.00014339,2]
[426812830,1782865841000,-7594.4614596,0.0001434,2]
[426812829,1782865841000,-300.0,0.00014339,2]
[426812834,1782865841000,-151.0,0.00014424,2]
[426812833,1782865841000,-151.0,0.0001434,2]
[426812837,1782865841000,-500.0,0.000145,5]
[426812827,1782865841000,-151.0,0.00014337,2]
[426812857,1782865841000,-210.81336156,0.000149,2]
[426812864,1782865841000,-1235.8061597,0.00014954,2]
[426812862,1782865841000,-649.38550873,0.000149,2]
[426812892,1782865841000,-500.0,0.00014999,2]
[426812893,1782865841000,-500.0,0.00014999,2]
[426812886,1782865841000,-1343.0,0.00014959,2]
[426812884,1782865841000,-378.1059719,0.00014958,2]
[426812885,1782865841000,-6566.0,0.00014959,2]
[426812889,1782865841000,-300.0,0.00014998,2]
[426812887,1782865841000,-150.0,0.00014986,2]
[426812883,1782865841000,-500.0,0.00014957,2]
[426812881,1782865841000,-500.0,0.00014957,2]
[426812888,1782865841000,-349.49,0.00014993,2]
[426812895,1782865841000,-500.0,0.00014999,2]
[426812897,1782865841000,-500.0,0.00014999,2]
[426812896,1782865841000,-500.0,0.00014999,2]
[426812901,1782865841000,-500.0,0.00014999,2]
[426812898,1782865841000,-500.0,0.00014999,2]
[426812900,1782865841000,-500.0,0.00014999,2]
[426812902,1782865841000,-209.21979598,0.00014999,2]
[426812859,1782865841000,-4962.4965,0.000149,2]
[426812899,1782865841000,-500.0,0.00014999,2]
[426812891,1782865841000,-584.14093567,0.00014999,2]
[426812894,1782865841000,-500.0,0.00014999,2]
[426812882,1782865841000,-500.0,0.00014957,2]
[426812890,1782865841000,-300.0,0.00014998,2]
[426812860,1782865841000,-381.8807826,0.000149,2]
[426812863,1782865841000,-296.63372056,0.000149,2]
[426812865,1782865841000,-4393.5153554,0.00014954,2]
[426812866,1782865841000,-500.0,0.00014957,2]
[426812867,1782865841000,-500.0,0.00014957,2]
[426812869,1782865841000,-325.62330576,0.00014957,2]
[426812872,1782865841000,-500.0,0.00014957,2]
[426812877,1782865841000,-500.0,0.00014957,2]
[426812861,1782865841000,-2600.0,0.000149,5]
[426812871,1782865841000,-500.0,0.00014957,2]
[426812879,1782865841000,-500.0,0.00014957,2]
[426812880,1782865841000,-500.0,0.00014957,2]
[426812873,1782865841000,-500.0,0.00014957,2]
[426812870,1782865841000,-500.0,0.00014957,2]
[426812875,1782865841000,-500.0,0.00014957,2]
[426812874,1782865841000,-500.0,0.00014957,2]
[426812876,1782865841000,-500.0,0.00014957,2]
[426812878,1782865841000,-500.0,0.00014957,2]
[426812904,1782865842000,-436.4156845,0.0001499,2]
[426812905,1782865842000,-584.81366092,0.0001499,2]
[426812924,1782865843000,-500.0,0.00014999,2]
[426812923,1782865843000,-500.0,0.00014999,2]
[426812919,1782865843000,-500.0,0.00014999,2]
[426812922,1782865843000,-340.8690979,0.00014999,2]
[426812913,1782865843000,-500.0,0.00014999,2]
[426812920,1782865843000,-398.96103541,0.00014999,2]
[426812921,1782865843000,-500.0,0.00014999,2]
[426812918,1782865843000,-500.0,0.00014999,2]
[426812916,1782865843000,-500.0,0.00014999,2]
[426812907,1782865843000,-290.78020402,0.00014999,2]
[426812915,1782865843000,-175.78,0.00014999,2]
[426812914,1782865843000,-442.63273246,0.00014999,2]
[426812912,1782865843000,-500.0,0.00014999,2]
[426812906,1782865843000,-1021.22934542,0.0001499,2]
[426812926,1782865843000,-424.182308,0.00014999,2]
[426812910,1782865843000,-500.0,0.00014999,2]
[426812909,1782865843000,-539.52853148,0.00014999,2]
[426812911,1782865843000,-500.0,0.00014999,2]
[426812908,1782865843000,-500.0,0.00014999,2]
[426812917,1782865843000,-500.0,0.00014999,2]
[426812935,1782865843000,-519.07328374,0.00014999,2]
[426812942,1782865843000,-255.14016875,0.00014999,2]
[426812934,1782865843000,-450.94534639,0.00014999,2]
[426812945,1782865843000,-278.79133976,0.00014999,2]
[426812927,1782865843000,-103.04164216,0.00014999,2]
[426812947,1782865843000,-96.24354177,0.00014999,2]
[426812949,1782865843000,-168.37101215,0.00014999,2]
[426812946,1782865843000,-221.20866024,0.00014999,2]
[426812948,1782865843000,-403.75645823,0.00014999,2]
[426812944,1782865843000,-515.57090499,0.00014999,2]
[426812940,1782865843000,-500.0,0.00014999,2]
[426812938,1782865843000,-500.0,0.00014999,2]
[426812941,1782865843000,-500.0,0.00014999,2]
[426812943,1782865843000,-244.85983125,0.00014999,2]
[426812925,1782865843000,-405.241704,0.00014999,2]
[426812937,1782865843000,-500.0,0.00014999,2]
[426812928,1782865843000,-500.0,0.00014999,2]
[426812932,1782865843000,-500.0,0.00014999,2]
[426812930,1782865843000,-312.33544193,0.00014999,2]
[426812929,1782865843000,-187.66455807,0.00014999,2]
[426812931,1782865843000,-500.0,0.00014999,2]
[426812933,1782865843000,-49.05465361,0.00014999,2]
[426812939,1782865843000,-500.0,0.00014999,2]
[426812936,1782865843000,-500.0,0.00014999,2]
[426812971,1782865846000,-500.0,0.00014999,2]
[426812967,1782865846000,-500.0,0.00014999,2]
[426812970,1782865846000,-500.0,0.00014999,2]
[426812964,1782865846000,-500.0,0.00014999,2]
[426812968,1782865846000,-500.0,0.00014999,2]
[426812972,1782865846000,-500.0,0.00014999,2]
[426812974,1782865846000,-500.0,0.00014999,2]
[426812965,1782865846000,-500.0,0.00014999,2]
[426812969,1782865846000,-500.0,0.00014999,2]
[426812963,1782865846000,-618.44465003,0.00014999,2]
[426812954,1782865846000,-492.64,0.00014999,2]
[426812962,1782865846000,-500.0,0.00014999,2]
[426812960,1782865846000,-421.33741696,0.00014999,2]
[426812956,1782865846000,-500.0,0.00014999,2]
[426812958,1782865846000,-500.0,0.00014999,2]
[426812957,1782865846000,-500.0,0.00014999,2]
[426812959,1782865846000,-500.0,0.00014999,2]
[426812953,1782865846000,-331.62898785,0.00014999,2]
[426812955,1782865846000,-500.0,0.00014999,2]
[426812973,1782865846000,-500.0,0.00014999,2]
[426812961,1782865846000,-500.0,0.00014999,2]
[426812966,1782865846000,-500.0,0.00014999,2]
[426812994,1782865846000,-435.9870766,0.00015,5]
[426812986,1782865846000,-500.0,0.00014999,2]
[426812998,1782865846000,-2748.66838216,0.00015,2]
[426812996,1782865846000,-3732.0,0.00015,5]
[426812995,1782865846000,-3551.0,0.00015,5]
[426812992,1782865846000,-300.0,0.00014999,2]
[426812993,1782865846000,-2301.0129234,0.00015,5]
[426812991,1782865846000,-500.0,0.00014999,2]
[426812989,1782865846000,-561.66367156,0.00014999,2]
[426812990,1782865846000,-171.0,0.00014999,2]
[426812988,1782865846000,-500.0,0.00014999,2]
[426812987,1782865846000,-460.0,0.00014999,2]
[426812997,1782865846000,-481.55776352,0.00015,2]
[426812984,1782865846000,-341.89231181,0.00014999,2]
[426812985,1782865846000,-500.0,0.00014999,2]
[426812975,1782865846000,-500.0,0.00014999,2]
[426812977,1782865846000,-500.0,0.00014999,2]
[426812978,1782865846000,-484.24760658,0.00014999,2]
[426812976,1782865846000,-500.0,0.00014999,2]
[426812980,1782865846000,-500.0,0.00014999,2]
[426812979,1782865846000,-500.0,0.00014999,2]
[426812983,1782865846000,-500.0,0.00014999,2]
[426812982,1782865846000,-500.0,0.00014999,2]
[426812981,1782865846000,-500.0,0.00014999,2]
[426813001,1782866080000,1017.25,0.00030137,30]
[426813002,1782866250000,150.0,0.0003013,30]
[426813004,1782866436000,158.0,0.00028526,30]
[426813005,1782866438000,158.0,0.00029526,30]
[426813006,1782866516000,155.0,0.00028526,30]
[426813007,1782866517000,155.0,0.00029526,30]
[426813008,1782866520000,150.0,0.0003013,30]
[426813009,1782866543000,161.0,0.00028526,30]
[426813010,1782866545000,161.0,0.00029526,30]
[426813012,1782866612000,160.0,0.00028526,30]
[426813013,1782866613000,161.0,0.00029526,30]
[426813015,1782866652000,163.0,0.00028526,30]
[426813016,1782866654000,163.0,0.00029526,30]
[426813017,1782866719000,163.0,0.00028526,30]
[426813018,1782866721000,163.0,0.00029526,30]
[426813019,1782866731000,166.66,0.00012989,2]
[426813020,1782866754000,300.0,0.00028526,30]
[426813021,1782866755000,300.0,0.00029526,30]
[426813022,1782866830000,162.0,0.00028526,30]
[426813023,1782866832000,162.0,0.00029526,30]
[426813024,1782866849000,154.0,0.00028526,30]
[426813025,1782866851000,162.0,0.00029526,30]
[426813027,1782866940000,2000.0,0.00028536,120]
[426813026,1782866940000,2000.0,0.00030136,30]
[426813046,1782867032000,-151.0,0.00013613,2]
[426813045,1782867032000,-150.0,0.00013613,2]
[426813051,1782867032000,-151.0,0.00013613,2]
[426813030,1782867032000,-150.0,0.00013612,2]
[426813053,1782867032000,-150.0,0.00013613,2]
[426813047,1782867032000,-151.0,0.00013613,2]
[426813048,1782867032000,-150.0,0.00013613,2]
[426813043,1782867032000,-150.0,0.00013613,2]
[426813054,1782867032000,-129.73187995,0.00013613,2]
[426813058,1782867032000,-118.63633195,0.00013613,2]
[426813050,1782867032000,-16.38420623,0.00013613,2]
[426813052,1782867032000,-151.0,0.00013613,2]
[426813037,1782867032000,-151.0,0.00013613,2]
[426813042,1782867032000,-150.0,0.00013613,2]
[426813040,1782867032000,-150.0,0.00013613,2]
[426813041,1782867032000,-150.0,0.00013613,2]
[426813038,1782867032000,-152.0,0.00013613,2]
[426813039,1782867032000,-152.0,0.00013613,2]
[426813033,1782867032000,-151.0,0.00013612,2]
[426813035,1782867032000,-151.0,0.00013613,2]
[426813032,1782867032000,-152.0,0.00013612,2]
[426813034,1782867032000,-150.0,0.00013613,2]
[426813036,1782867032000,-151.0,0.00013613,2]
[426813031,1782867032000,-150.0,0.00013612,2]
[426813044,1782867032000,-151.0,0.00013613,2]
[426813056,1782867032000,-152.0,0.00013613,2]
[426813049,1782867032000,-136.61579377,0.00013613,2]
[426813055,1782867032000,-21.26812005,0.00013613,2]
[426813059,1782867032000,-31.36366805,0.00013613,2]
[426813094,1782867032000,-283.0,0.00014249,2]
[426813079,1782867032000,-165.62,0.00014221,2]
[426813090,1782867032000,-1362.0,0.00014249,2]
[426813098,1782867032000,-6197.01976842,0.0001425,2]
[426813096,1782867032000,-935.0,0.00014249,2]
[426813088,1782867032000,-3565.0,0.00014249,2]
[426813083,1782867032000,-592.78173434,0.00014248,2]
[426813081,1782867032000,-1479.77,0.00014223,2]
[426813086,1782867032000,-439.12421374,0.00014248,2]
[426813092,1782867032000,-1278.0,0.00014249,2]
[426813077,1782867032000,-150.0,0.00014147,2]
[426813057,1782867032000,-151.0,0.00013613,2]
[426813070,1782867032000,-151.0,0.00013975,2]
[426813060,1782867032000,-151.0,0.00013613,2]
[426813066,1782867032000,-1000.0,0.00013839,2]
[426813065,1782867032000,-166.15,0.00013718,2]
[426813067,1782867032000,-162.96,0.0001385,2]
[426813061,1782867032000,-151.0,0.00013613,2]
[426813064,1782867032000,-818.97,0.00013658,2]
[426813068,1782867032000,-153.0,0.00013975,2]
[426813071,1782867032000,-150.0,0.00013975,2]
[426813073,1782867032000,-152.0,0.00013975,2]
[426813063,1782867032000,-151.0,0.00013613,2]
[426813075,1782867032000,-200.0,0.00014057,2]
[426813062,1782867032000,-150.0,0.00013613,2]
[426813112,1782867038000,-162.96,0.00014542,2]
[426813107,1782867038000,-4425.69992015,0.00014249,2]
[426813114,1782867038000,-527.4814,0.000148,2]
[426813111,1782867038000,-3409.85598172,0.00014438,2]
[426813110,1782867038000,-166.66,0.00014356,2]
[426813115,1782867038000,-12.76230674,0.00014809,2]
[426813109,1782867038000,-3896.62830858,0.0001425,2]
[426813113,1782867038000,-255.0,0.00014728,2]
[426813108,1782867038000,-1662.30007985,0.00014249,2]
[426813130,1782867040000,-173.76287131,0.000149,2]
[426813126,1782867040000,-500.0,0.00014809,2]
[426813125,1782867040000,-500.0,0.00014809,2]
[426813128,1782867040000,-160.79213086,0.000149,2]
[426813127,1782867040000,-200.0,0.0001488,2]
[426813124,1782867040000,-215.81372684,0.00014809,2]
[426813123,1782867040000,-271.42396642,0.00014809,2]
[426813129,1782867040000,-254.5871884,0.000149,2]
[426813131,1782867040000,-1092.10106438,0.000149,2]
[426813141,1782867040000,-405.241704,0.00014999,2]
[426813132,1782867040000,-6268.10034516,0.000149,2]
[426813134,1782867040000,-527.22395016,0.00014958,2]
[426813135,1782867040000,-403.52084431,0.0001499,2]
[426813138,1782867040000,-500.0,0.00014999,2]
[426813140,1782867040000,-500.0,0.00014999,2]
[426813139,1782867040000,-508.57397179,0.00014999,2]
[426813137,1782867040000,-875.75745059,0.0001499,2]
[426813136,1782867040000,-472.23660628,0.0001499,2]
[426813142,1782867040000,-138.78228678,0.00014999,2]
[426813133,1782867040000,-607.63730352,0.000149,2]
[426813148,1782867043000,-500.0,0.00014999,2]
[426813146,1782867043000,-868.2802,0.000149,2]
[426813147,1782867043000,-361.21771322,0.00014999,2]
[426813150,1782867043000,-2212.55738703,0.00014999,2]
[426813149,1782867043000,-549.05465361,0.00014999,2]
[426813152,1782867043000,-790.70620023,0.00014999,2]
[426813153,1782867043000,-1361.39009554,0.00014999,2]
[426813151,1782867043000,-4248.36727944,0.00014999,2]
[426813156,1782867122000,189.25,0.0002863,30]
[426813158,1782867123000,189.25,0.00029132,30]
[426813157,1782867123000,153.71,0.0002863,30]
[426813159,1782867124000,189.25,0.00029634,30]
[426813160,1782867125000,189.33,0.00030136,30]
[426813161,1782867145000,157.81,0.0002863,30]
[426813162,1782867146000,157.81,0.00029132,30]
[426813163,1782867147000,157.81,0.00029634,30]
[426813164,1782867160000,207.52,0.0002863,30]
[426813165,1782867206000,158.74,0.0002863,30]
[426813166,1782867230000,153.71,0.0002863,30]
[426813167,1782867251000,159.09,0.0002863,30]
[426813168,1782867252000,159.09,0.00029275,30]
[426813169,1782867279000,2975.8293938,8e-05,2]
[426813171,1782867296000,158.45,0.0002863,30]
[426813172,1782867300000,153.72,0.0002863,30]
[426813173,1782867366000,158.44,0.0002863,30]
[426813176,1782867442000,158.7,0.0002863,30]
[426813177,1782867462000,2350.14305091,9.04e-05,2]
[426813178,1782867481000,503.37,0.00010438,2]
[426813179,1782867514000,158.72,0.0002863,30]
[426813180,1782867535000,163.0,0.00028526,30]
[426813181,1782867548000,656.82,0.00010438,2]
[426813182,1782867554000,158.59,0.0002863,30]
[426813183,1782867561000,158.58,0.0002863,30]
[426813184,1782867569000,158.63,0.0002863,30]
[426813185,1782867578000,158.66,0.0002863,30]
[426813198,1782867583000,-152.0,0.00013656,2]
[426813197,1782867583000,-151.0,0.00013651,2]
[426813195,1782867583000,-151.0,0.00013649,2]
[426813194,1782867583000,-162.96,0.00013649,2]
[426813196,1782867583000,-151.0,0.00013649,2]
[426813193,1782867583000,-151.0,0.00013649,2]
[426813189,1782867583000,-152.0,0.00013649,2]
[426813190,1782867583000,-152.0,0.00013649,2]
[426813191,1782867583000,-151.0,0.00013649,2]